fUST/lending_fUST_20240424
["ID","MTS","AMOUNT","RATE_DAILY","PERIOD"]
[323374668,1713940244504,-500.0,0.00016712,2]
[323374669,1713940244513,-501.69960954,0.00016712,2]
[323374670,1713940244522,-552.53315865,0.00016712,2]
[323374671,1713940244532,-500.0,0.00016712,2]
[323374672,1713940244541,-500.0,0.00016712,2]
[323374673,1713940244550,-500.0,0.00016712,2]
[323374674,1713940244559,-500.0,0.00016712,2]
[323374675,1713940244567,-500.0,0.00016712,2]
[323374676,1713940244577,-500.0,0.00016712,2]
[323374677,1713940244589,-500.0,0.00016712,2]
[323374678,1713940244598,-500.0,0.00016712,2]
[323374679,1713940244607,-500.0,0.00016712,2]
[323374680,1713940244617,-500.0,0.00016712,2]
[323374681,1713940244626,-171.97717731,0.00016712,2]
[323374682,1713940244637,-500.0,0.00016712,2]
[323374683,1713940244647,-500.0,0.00016712,2]
[323374684,1713940244657,-500.0,0.00016712,2]
[323374685,1713940244668,-500.0,0.00016712,2]
[323374686,1713940244678,-500.0,0.00016712,2]
[323374687,1713940244686,-758.84,0.00016712,2]
[323374688,1713940244699,-391.74832948,0.00016712,2]
[323374689,1713940244710,-500.0,0.00016712,2]
[323374690,1713940244722,-500.0,0.00016712,2]
[323374691,1713940244731,-500.0,0.00016712,2]
[323374692,1713940244740,-500.0,0.00016712,2]
[323374693,1713940244750,-544.59,0.00016712,2]
[323374694,1713940244759,-500.0,0.00016712,2]
[323374695,1713940244769,-500.0,0.00016712,2]
[323374696,1713940244778,-500.0,0.00016712,2]
[323374697,1713940244787,-500.0,0.00016712,2]
[323374698,1713940244800,-500.0,0.00016712,2]
[323374699,1713940244810,-985.75,0.00016712,2]
[323374700,1713940244820,-500.0,0.00016712,2]
[323374701,1713940244830,-500.0,0.00016712,2]
[323374702,1713940244840,-1255.71,0.00016712,2]
[323374703,1713940244849,-500.0,0.00016712,2]
[323374704,1713940244858,-500.0,0.00016712,2]
[323374705,1713940244867,-500.0,0.00016712,2]
[323374706,1713940244876,-500.0,0.00016712,2]
[323374707,1713940244886,-500.0,0.00016712,2]
[323374708,1713940244895,-500.0,0.00016712,2]
[323374709,1713940244904,-824.77,0.00016712,2]
[323374710,1713940244913,-500.0,0.00016712,2]
[323374711,1713940244923,-500.27138375,0.00016712,2]
[323374712,1713940244934,-500.0,0.00016712,2]
[323374713,1713940244945,-500.0,0.00016712,2]
[323374714,1713940244956,-500.0,0.00016712,2]
[323374715,1713940244965,-906.61,0.00016712,2]
[323374716,1713940244975,-500.0,0.00016712,2]
[323374717,1713940244984,-500.0,0.00016712,2]
[323374718,1713940244993,-500.0,0.00016712,2]
[323374719,1713940245002,-500.0,0.00016712,2]
[323374720,1713940245011,-500.0,0.00016712,2]
[323374721,1713940245020,-500.0,0.00016712,2]
[323374722,1713940245029,-1056.28,0.00016712,2]
[323374723,1713940245039,-500.0,0.00016712,2]
[323374724,1713940245048,-609.68729219,0.00016712,2]
[323374725,1713940245057,-500.0,0.00016712,2]
[323374726,1713940245066,-1808.98,0.00016712,2]
[323374727,1713940245075,-500.0,0.00016712,2]
[323374728,1713940245084,-500.0,0.00016712,2]
[323374729,1713940245094,-500.0,0.00016712,2]
[323374730,1713940245103,-1293.74,0.00016712,2]
[323374731,1713940245112,-500.0,0.00016712,2]
[323374732,1713940245121,-500.0,0.00016712,2]
[323374733,1713940245130,-500.0,0.00016712,2]
[323374734,1713940245139,-500.0,0.00016712,2]
[323374735,1713940245149,-500.0,0.00016712,2]
[323374736,1713940245158,-500.0,0.00016712,2]
[323374737,1713940245168,-500.0,0.00016712,2]
[323374738,1713940245177,-500.52186241,0.00016712,2]
[323374739,1713940245188,-528.40626369,0.00016712,2]
[323374740,1713940245198,-500.0,0.00016712,2]
[323374741,1713940245206,-727.22,0.00016712,2]
[323374742,1713940245215,-500.0,0.00016712,2]
[323374743,1713940245226,-200.52326408,0.00016712,2]
[323374744,1713940245236,-500.0,0.00016712,2]
[323374745,1713940245246,-500.88350996,0.00016712,2]
[323374746,1713940245256,-503.43849542,0.00016712,2]
[323374747,1713940245266,-500.0,0.00016712,2]
[323374748,1713940245276,-713.73,0.00016712,2]
[323374749,1713940245287,-500.0,0.00016712,2]
[323374750,1713940245296,-677.78,0.00016712,2]
[323374751,1713940245305,-688.54,0.00016712,2]
[323374752,1713940245314,-500.0,0.00016712,2]
[323374753,1713940245324,-500.0,0.00016712,2]
[323374754,1713940245333,-500.0,0.00016712,2]
[323374755,1713940245342,-500.0,0.00016712,2]
[323374756,1713940245351,-500.0,0.00016712,2]
[323374757,1713940245360,-500.0,0.00016712,2]
[323374758,1713940245370,-500.40325805,0.00016712,2]
[323374759,1713940245379,-500.0,0.00016712,2]
[323374760,1713940245388,-500.0,0.00016712,2]
[323374761,1713940245398,-500.0,0.00016712,2]
[323374762,1713940245408,-500.0,0.00016712,2]
[323374764,1713940245417,-500.0,0.00016712,2]
[323374765,1713940245426,-500.43747297,0.00016712,2]
[323374767,1713940245435,-500.0,0.00016712,2]
[323374768,1713940245446,-500.0,0.00016712,2]
[323374771,1713940245454,-500.0,0.00016712,2]
[323374773,1713940245463,-759.62,0.00016712,2]
[323374775,1713940245472,-500.7999827,0.00016712,2]
[323374778,1713940245481,-1708.57,0.00016712,2]
[323374780,1713940245490,-186.90170609,0.00016712,2]
[323374782,1713940245499,-500.0,0.00016712,2]
[323374783,1713940245509,-1989.58,0.00016712,2]
[323374784,1713940245518,-500.0,0.00016712,2]
[323374785,1713940245527,-650.86,0.00016712,2]
[323374788,1713940245537,-500.0,0.00016712,2]
[323374791,1713940245546,-500.0,0.00016712,2]
[323374793,1713940245555,-957.79,0.00016712,2]
[323374796,1713940245564,-1542.42,0.00016712,2]
[323374799,1713940245573,-500.0,0.00016712,2]
[323374802,1713940245582,-500.0,0.00016712,2]
[323374804,1713940245591,-500.0,0.00016712,2]
[323374807,1713940245601,-500.0,0.00016712,2]
[323374810,1713940245610,-500.0,0.00016712,2]
[323374813,1713940245619,-500.0,0.00016712,2]
[323374816,1713940245629,-500.0,0.00016712,2]
[323374820,1713940245637,-500.0,0.00016712,2]
[323374823,1713940245647,-500.0,0.00016712,2]
[323374827,1713940245656,-501.36285965,0.00016712,2]
[323374830,1713940245665,-500.0,0.00016712,2]
[323374834,1713940245674,-657.85,0.00016712,2]
[323374837,1713940245683,-500.0,0.00016712,2]
[323374841,1713940245694,-500.0,0.00016712,2]
[323374844,1713940245703,-500.0,0.00016712,2]
[323374846,1713940245711,-500.0,0.00016712,2]
[323374848,1713940245724,-500.0,0.00016712,2]
[323374850,1713940245733,-500.0,0.00016712,2]
[323374852,1713940245741,-500.0,0.00016712,2]
[323374854,1713940245751,-500.0,0.00016712,2]
[323374857,1713940245760,-500.0,0.00016712,2]
[323374860,1713940245771,-500.0,0.00016712,2]
[323374863,1713940245780,-511.13,0.00016712,2]
[323374866,1713940245788,-500.0,0.00016712,2]
[323374869,1713940245799,-500.0,0.00016712,2]
[323374873,1713940245808,-500.0,0.00016712,2]
[323374877,1713940245817,-500.0,0.00016712,2]
[323374880,1713940245827,-866.19,0.00016712,2]
[323374883,1713940245836,-500.84507688,0.00016712,2]
[323374886,1713940245846,-500.0,0.00016712,2]
[323374889,1713940245856,-916.66,0.00016712,2]
[323374891,1713940245865,-151.0,0.00016712,2]
[323374894,1713940245874,-313.11472914,0.00016712,2]
[323374896,1713940245884,-500.0,0.00016712,2]
[323374898,1713940245893,-500.83165613,0.00016712,2]
[323374900,1713940245902,-500.0,0.00016712,2]
[323374902,1713940245912,-500.0,0.00016712,2]
[323374903,1713940245922,-1625.0,0.00016712,2]
[323374904,1713940245931,-1625.0,0.00016712,2]
[323374905,1713940245941,-500.0,0.00016712,2]
[323374906,1713940245950,-739.67,0.00016712,2]
[323374907,1713940245959,-2342.26,0.00016712,2]
[323374908,1713940245968,-739.45,0.00016712,2]
[323374909,1713940245977,-500.0,0.00016712,2]
[323374910,1713940245987,-500.0,0.00016712,2]
[323374911,1713940245995,-500.0,0.00016712,2]
[323374912,1713940246005,-501.31624573,0.00016712,2]
[323374913,1713940246014,-210.94047831,0.00016712,2]
[323374914,1713940246023,-3279.59,0.00016712,2]
[323374915,1713940246032,-500.82405238,0.00016712,2]
[323374916,1713940246042,-503.09299643,0.00016712,2]
[323374918,1713940246051,-151.0,0.00016712,2]
[323374920,1713940246060,-500.76294847,0.00016712,2]
[323374921,1713940246069,-608.4,0.00016712,2]
[323374922,1713940246078,-500.0,0.00016712,2]
[323374923,1713940246088,-1325.82,0.00016712,2]
[323374924,1713940246097,-670.31,0.00016712,2]
[323374925,1713940246106,-151.0,0.00016712,2]
[323374926,1713940246115,-500.43888082,0.00016712,2]
[323374927,1713940246125,-637.448154,0.00016712,2]
[323374928,1713940246134,-867.8,0.00016712,2]
[323374929,1713940246143,-500.0,0.00016712,2]
[323374930,1713940246152,-637.448154,0.00016712,2]
[323374931,1713940246162,-553.06,0.00016712,2]
[323374932,1713940246172,-487.27586317,0.00016712,2]
[323374933,1713940246180,-1734.82,0.00016712,2]
[323374934,1713940246190,-1678.419713,0.00016712,2]
[323374935,1713940246210,-975.851145,0.00016712,2]
[323374936,1713940246410,-500.0,0.00016712,2]
[323374937,1713940246420,-500.0,0.00016712,2]
[323374938,1713940246429,-975.851145,0.00016712,2]
[323374939,1713940246439,-1678.419713,0.00016712,2]
[323374940,1713940246449,-500.0,0.00016712,2]
[323374941,1713940246459,-500.0,0.00016712,2]
[323374942,1713940246468,-500.0,0.00016712,2]
[323374943,1713940246478,-2326.32,0.00016712,2]
[323374944,1713940246487,-1663.68,0.00016712,2]
[323374945,1713940246497,-500.32518761,0.00016712,2]
[323374946,1713940246506,-500.0,0.00016712,2]
[323374947,1713940246516,-1685.04,0.00016712,2]
[323374948,1713940246525,-500.0,0.00016712,2]
[323374949,1713940246535,-500.0,0.00016712,2]
[323374950,1713940246544,-501.6743332,0.00016712,2]
[323374951,1713940246555,-671.0,0.00016712,2]
[323374952,1713940246564,-837.34,0.00016712,2]
[323374953,1713940246574,-502.2687264,0.00016712,2]
[323374954,1713940246583,-1180.89,0.00016712,2]
[323374955,1713940246592,-500.0,0.00016712,2]
[323374956,1713940246601,-500.0,0.00016712,2]
[323374957,1713940246611,-500.0,0.00016712,2]
[323374958,1713940246620,-500.0,0.00016712,2]
[323374959,1713940246629,-5048.96676208,0.00016712,2]
[323374974,1713940878507,17620.7294123,0.0002,14]
[323374983,1713941372114,-1575.31939472,0.00012594,2]
[323374984,1713941372134,-59169.7357574,0.00012595,2]
[323374985,1713941372157,-300.0,0.00012596,2]
[323374986,1713941372177,-28747.09474848,0.00012596,2]
[323375089,1713941438193,-154.08119064,0.0001237,2]
[323375091,1713941438204,-729.48680207,0.00012469,2]
[323375092,1713941438213,-15054.11523466,0.0001247,2]
[323375094,1713941438222,-300.0,0.00012595,2]
[323375096,1713941438231,-300.0,0.00012595,2]
[323375098,1713941438240,-129219.54683727,0.00012596,2]
[323375100,1713941438249,-24900.0,0.00012728,2]
[323375102,1713941438259,-1233.67127019,0.00013599,2]
[323375104,1713941438267,-1575.31939472,0.00013698,2]
[323375106,1713941438277,-59169.7357574,0.00013698,2]
[323375108,1713941438286,-2767.2418592,0.00013699,2]
[323375110,1713941438294,-4948.64031,0.00013699,2]
[323375112,1713941438303,-40658.1511933,0.00013699,2]
[323375136,1713941438464,-1158.46136537,0.00013799,2]
[323375138,1713941438474,-420.0,0.00013818,2]
[323375139,1713941438483,-420.0,0.00013855,2]
[323375140,1713941438492,-249.72997256,0.00013899,2]
[323375141,1713941438501,-188.84787867,0.00013899,2]
[323375142,1713941438510,-927.87368973,0.00014,2]
[323375143,1713941438519,-2099.79903615,0.00015,2]
[323375144,1713941438529,-154.84515485,0.00015,2]
[323375145,1713941438538,-938.69803003,0.00015,2]
[323375146,1713941438548,-586.0,0.0001516,2]
[323375147,1713941438557,-587.0,0.0001524,2]
[323375148,1713941438567,-1233.67127015,0.00015928,2]
[323375149,1713941438577,-15215.38422108,0.00016,2]
[323375150,1713941438586,-22170.11534831,0.00016,2]
[323375151,1713941438595,-404.6761652,0.00016057,2]
[323375152,1713941438604,-203.583665,0.00016057,2]
[323375153,1713941438613,-143923.06217955,0.000162,2]
[323375154,1713941438622,-36943.23226999,0.00016338,2]
[323375168,1713941440328,-787.9461882,0.00016338,2]
[323375169,1713941440339,-366.91229646,0.00016338,2]
[323375200,1713941446225,-2671.52263681,0.00016338,2]
[323375201,1713941446271,-1363.1266,0.00016338,2]
[323375207,1713941826086,1000.0,0.00026,120]
[323375212,1713941859690,1000.0,0.00025,30]
[323375213,1713941881048,1000.0,0.00024,60]
[323375214,1713941890384,1000.0,0.00023,30]
[323375230,1713941908977,1000.0,0.00022,23]
[323375232,1713941932526,1000.0,0.00021,90]
[323375252,1713942436509,309.59752322,0.0001087,2]
[323375253,1713942490478,154.84515485,0.0001087,2]
[323375258,1713942545115,-154.84515485,0.00012586,2]
[323375259,1713942545136,-6531.00560273,0.00012586,2]
[323375260,1713942545158,-300.0,0.00012587,2]
[323375261,1713942545179,-154.84515485,0.00012587,2]
[323375262,1713942545200,-1678.96711435,0.00012587,2]
[323375263,1713942545228,-1575.31939472,0.00012588,2]
[323375264,1713942545251,-43815.42844972,0.00012588,2]
[323375265,1713942573825,299002.88733566,0.00025,30]
[323375354,1713942638392,-167.43878573,0.00012489,2]
[323375355,1713942638401,-300.0,0.00012587,2]
[323375356,1713942638411,-300.0,0.00012587,2]
[323375357,1713942638421,-2488.76121427,0.00012588,2]
[323375358,1713942638447,-12865.54609341,0.00012588,2]
[323375359,1713942638459,-24900.0,0.00012589,2]
[323375360,1713942638468,-156.46631818,0.00013069,2]
[323375361,1713942638478,-243.5132188,0.00013587,2]
[323375362,1713942638488,-155.0252521,0.00013587,2]
[323375363,1713942638497,-154.89846529,0.00013587,2]
[323375364,1713942638506,-256.66052479,0.00013587,2]
[323375365,1713942638516,-1882.67178657,0.00013589,2]
[323375366,1713942638525,-39412.08976024,0.0001359,2]
[323375367,1713942638536,-188.84787867,0.0001359,2]
[323375368,1713942638545,-1158.46136537,0.0001359,2]
[323375369,1713942638554,-20000.037401,0.00013592,2]
[323375370,1713942638564,-421.26626035,0.00013598,2]
[323375371,1713942638573,-2767.2418592,0.00013699,2]
[323375372,1713942638583,-420.0,0.0001381,2]
[323375373,1713942638592,-420.0,0.00013846,2]
[323375374,1713942638601,-927.87368973,0.00014,2]
[323375375,1713942638610,-887.29315459,0.00014142,2]
[323375376,1713942638620,-1016.83080977,0.00014143,2]
[323375377,1713942638629,-160.59976227,0.00014145,2]
[323375378,1713942638639,-180.29939571,0.00014145,2]
[323375379,1713942638648,-154.93451573,0.00014145,2]
[323375380,1713942638657,-154.89463122,0.00014145,2]
[323375381,1713942638666,-154.92930371,0.00014145,2]
[323375382,1713942638676,-301.07832754,0.00014145,2]
[323375383,1713942638685,-154.9025669,0.00014145,2]
[323375384,1713942638694,-184.84247159,0.00014145,2]
[323375385,1713942638704,-154.98551453,0.00014145,2]
[323375386,1713942638713,-199.60946054,0.00014145,2]
[323375387,1713942638724,-155.13312338,0.00014145,2]
[323375388,1713942638734,-154.90940794,0.00014145,2]
[323375389,1713942638743,-155.35508982,0.00014145,2]
[323375390,1713942638752,-154.96394862,0.00014145,2]
[323375391,1713942638762,-154.92306399,0.00014145,2]
[323375392,1713942638771,-154.8767742,0.00014145,2]
[323375393,1713942638780,-155.65870881,0.00014145,2]
[323375394,1713942638789,-185.94441437,0.00014146,2]
[323375395,1713942638798,-421.26626032,0.00014283,2]
[323375396,1713942638808,-2786.351469,0.00014491,2]
[323375397,1713942638817,-40658.1511933,0.00014491,2]
[323375398,1713942638826,-421.26626032,0.00014968,2]
[323375399,1713942638836,-309.62844586,0.00015,2]
[323375400,1713942638845,-312.66661178,0.00015,2]
[323375401,1713942638855,-2776.29930889,0.00015,2]
[323375402,1713942638864,-628.29006624,0.00015,2]
[323375403,1713942638873,-154.84515485,0.00015147,2]
[323375404,1713942638882,-938.69803003,0.00015147,2]
[323375405,1713942638891,-157.06659545,0.00015148,2]
[323375406,1713942638901,-1678.96711435,0.00015148,2]
[323375407,1713942638910,-4354.00373515,0.00015148,2]
[323375408,1713942638919,-2099.79903615,0.00015148,2]
[323375409,1713942638928,-1575.31939472,0.00015148,2]
[323375410,1713942638937,-1676.10589151,0.00015149,2]
[323375411,1713942638947,-154.84515485,0.00015149,2]
[323375412,1713942638956,-587.0,0.00015151,2]
[323375413,1713942638965,-587.0,0.00015231,2]
[323375414,1713942638976,-421.26626032,0.00015653,2]
[323375415,1713942638985,-500.0,0.00015998,2]
[323375416,1713942638994,-500.0,0.00015998,2]
[323375417,1713942639003,-500.0,0.00015998,2]
[323375418,1713942639012,-500.0,0.00015998,2]
[323375419,1713942639022,-500.0,0.00015998,2]
[323375420,1713942639031,-500.0,0.00015998,2]
[323375421,1713942639040,-500.0,0.00015998,2]
[323375422,1713942639050,-500.0,0.00015998,2]
[323375423,1713942639058,-500.0,0.00015998,2]
[323375424,1713942639067,-500.0,0.00015998,2]
[323375425,1713942639077,-500.0,0.00015998,2]
[323375426,1713942639086,-500.0,0.00015998,2]
[323375427,1713942639095,-500.0,0.00015998,2]
[323375428,1713942639104,-500.0,0.00015998,2]
[323375429,1713942639113,-275.37214622,0.00015998,2]
[323375430,1713942639123,-154.88152691,0.00015998,2]
[323375431,1713942639132,-968.3784566,0.00016,2]
[323375432,1713942639141,-5000.0,0.00016,2]
[323375433,1713942639151,-15215.38422108,0.00016,2]
[323375434,1713942639159,-238.93971122,0.00016,2]
[323375435,1713942639168,-247.2522738,0.00016057,2]
[323375436,1713942639177,-203.583665,0.00016078,2]
[323375437,1713942639186,-205.37035457,0.00016098,2]
[323375438,1713942639197,-407.16733,0.000161,2]
[323375439,1713942639207,-203.583665,0.00016178,2]
[323375440,1713942639216,-346.6537571,0.00016252,2]
[323375441,1713942639229,-421.26626032,0.00016338,2]
[323375442,1713942639238,-44444.0,0.00016338,2]
[323375443,1713942639247,-203.583665,0.00016348,2]
[323375444,1713942639258,-203.583665,0.00016386,2]
[323375445,1713942639268,-203.583665,0.00016386,2]
[323375446,1713942639278,-203.583665,0.00016386,2]
[323375447,1713942639288,-206.6998098,0.00016386,2]
[323375448,1713942639297,-203.583665,0.00016386,2]
[323375449,1713942639307,-203.583665,0.00016386,2]
[323375450,1713942639316,-203.583665,0.00016386,2]
[323375451,1713942639326,-203.583665,0.00016386,2]
[323375452,1713942639335,-203.583665,0.000164,2]
[323375453,1713942639345,-203.583665,0.000164,2]
[323375454,1713942639353,-203.583665,0.000164,2]
[323375455,1713942639362,-221.778,0.00016435,2]
[323375456,1713942639372,-418.501,0.00016435,2]
[323375457,1713942639382,-550.93219597,0.00016435,2]
[323375458,1713942639391,-204.44216796,0.00016436,2]
[323375459,1713942639400,-200.09147316,0.00016438,2]
[323375460,1713942639409,-500.0,0.00016438,2]
[323375461,1713942639418,-500.0,0.00016438,2]
[323375462,1713942639426,-500.0,0.00016438,2]
[323375463,1713942639435,-500.0,0.00016438,2]
[323375464,1713942639444,-502.80810411,0.00016438,2]
[323375465,1713942639455,-590.33,0.00016438,2]
[323375466,1713942639464,-500.0,0.00016438,2]
[323375467,1713942639474,-500.0,0.00016438,2]
[323375468,1713942639483,-500.0,0.00016438,2]
[323375469,1713942639496,-506.05723835,0.00016438,2]
[323375470,1713942639505,-500.0,0.00016438,2]
[323375471,1713942639514,-1726.1,0.00016438,2]
[323375472,1713942639523,-500.0,0.00016438,2]
[323375473,1713942639536,-500.0,0.00016438,2]
[323375474,1713942639546,-500.0,0.00016438,2]
[323375475,1713942639555,-500.0,0.00016438,2]
[323375476,1713942639564,-500.0,0.00016438,2]
[323375477,1713942639574,-500.0,0.00016438,2]
[323375478,1713942639584,-500.0,0.00016438,2]
[323375479,1713942639594,-500.0,0.00016438,2]
[323375480,1713942639604,-500.0,0.00016438,2]
[323375481,1713942639616,-500.0,0.00016438,2]
[323375482,1713942639626,-500.0,0.00016438,2]
[323375483,1713942639635,-500.0,0.00016438,2]
[323375484,1713942639644,-500.0,0.00016438,2]
[323375485,1713942639653,-500.0,0.00016438,2]
[323375486,1713942639663,-156.23593361,0.00016438,2]
[323375487,1713942639672,-503.51296791,0.00016438,2]
[323375488,1713942639681,-218.09013133,0.00016438,2]
[323375489,1713942639690,-500.60779908,0.00016438,2]
[323375490,1713942639699,-502.72103971,0.00016438,2]
[323375491,1713942639708,-500.0,0.00016438,2]
[323375492,1713942639717,-734.19,0.00016438,2]
[323375493,1713942639729,-976.27,0.00016438,2]
[323375494,1713942639739,-608.61,0.00016438,2]
[323375495,1713942639748,-500.0,0.00016438,2]
[323375496,1713942639758,-500.0,0.00016438,2]
[323375497,1713942639767,-500.0,0.00016438,2]
[323375498,1713942639776,-599.64584797,0.00016438,2]
[323375499,1713942639785,-500.0,0.00016438,2]
[323375500,1713942639795,-500.81982307,0.00016438,2]
[323375501,1713942639804,-647.12,0.00016438,2]
[323375502,1713942639813,-500.0,0.00016438,2]
[323375503,1713942639822,-500.0,0.00016438,2]
[323375504,1713942639832,-500.0,0.00016438,2]
[323375505,1713942639841,-204.36487611,0.00016438,2]
[323375506,1713942639850,-500.0,0.00016438,2]
[323375507,1713942639859,-502.04529994,0.00016438,2]
[323375508,1713942639868,-500.0,0.00016438,2]
[323375510,1713942639877,-500.0,0.00016438,2]
[323375511,1713942639887,-500.0,0.00016438,2]
[323375513,1713942639896,-500.0,0.00016438,2]
[323375514,1713942639905,-500.0,0.00016438,2]
[323375516,1713942639914,-500.0,0.00016438,2]
[323375518,1713942639924,-500.0,0.00016438,2]
[323375519,1713942639933,-500.0,0.00016438,2]
[323375520,1713942639943,-500.0,0.00016438,2]
[323375521,1713942639952,-500.0,0.00016438,2]
[323375522,1713942639962,-500.0,0.00016438,2]
[323375523,1713942639972,-500.0,0.00016438,2]
[323375524,1713942639981,-500.0,0.00016438,2]
[323375525,1713942639990,-480.80965386,0.00016438,2]
[323375526,1713942639999,-500.0,0.00016438,2]
[323375527,1713942640009,-500.0,0.00016438,2]
[323375528,1713942640019,-500.69191621,0.00016438,2]
[323375529,1713942640028,-500.0,0.00016438,2]
[323375530,1713942640037,-500.0,0.00016438,2]
[323375531,1713942640047,-500.0,0.00016438,2]
[323375532,1713942640056,-500.0,0.00016438,2]
[323375533,1713942640066,-500.0,0.00016438,2]
[323375534,1713942640075,-201.00090847,0.00016438,2]
[323375535,1713942640084,-500.0,0.00016438,2]
[323375536,1713942640093,-1056.92,0.00016438,2]
[323375537,1713942640102,-1259.29,0.00016438,2]
[323375538,1713942640111,-500.0,0.00016438,2]
[323375539,1713942640120,-500.0,0.00016438,2]
[323375540,1713942640130,-500.0,0.00016438,2]
[323375541,1713942640138,-691.96,0.00016438,2]
[323375542,1713942640147,-500.0,0.00016438,2]
[323375543,1713942640157,-500.0,0.00016438,2]
[323375544,1713942640166,-500.0,0.00016438,2]
[323375545,1713942640175,-500.0,0.00016438,2]
[323375546,1713942640184,-500.0,0.00016438,2]
[323375548,1713942640193,-1023.27,0.00016438,2]
[323375550,1713942640202,-501.32989006,0.00016438,2]
[323375551,1713942640211,-500.0,0.00016438,2]
[323375552,1713942640220,-500.0,0.00016438,2]
[323375553,1713942640230,-500.6250133,0.00016438,2]
[323375554,1713942640239,-500.0,0.00016438,2]
[323375555,1713942640248,-500.0,0.00016438,2]
[323375556,1713942640257,-500.0,0.00016438,2]
[323375557,1713942640266,-500.0,0.00016438,2]
[323375558,1713942640275,-500.0,0.00016438,2]
[323375559,1713942640284,-500.0,0.00016438,2]
[323375560,1713942640293,-500.0,0.00016438,2]
[323375561,1713942640302,-500.0,0.00016438,2]
[323375562,1713942640311,-500.0,0.00016438,2]
[323375563,1713942640320,-500.0,0.00016438,2]
[323375565,1713942640463,-500.0,0.00016438,2]
[323375567,1713942640473,-500.0,0.00016438,2]
[323375568,1713942640482,-560.07598979,0.00016438,2]
[323375569,1713942640490,-500.0,0.00016438,2]
[323375570,1713942640500,-500.0,0.00016438,2]
[323375571,1713942640509,-500.0,0.00016438,2]
[323375572,1713942640518,-500.0,0.00016438,2]
[323375573,1713942640527,-500.0,0.00016438,2]
[323375574,1713942640537,-500.0,0.00016438,2]
[323375575,1713942640546,-500.0,0.00016438,2]
[323375576,1713942640556,-500.0,0.00016438,2]
[323375577,1713942640565,-500.0,0.00016438,2]
[323375578,1713942640575,-414.75664885,0.00016438,2]
[323375579,1713942640587,-500.0,0.00016438,2]
[323375580,1713942640596,-1540.79,0.00016438,2]
[323375581,1713942640605,-500.0,0.00016438,2]
[323375582,1713942640614,-2025.2,0.00016438,2]
[323375583,1713942640625,-610.11017992,0.00016438,2]
[323375584,1713942640635,-500.0,0.00016438,2]
[323375585,1713942640645,-3020.08,0.00016438,2]
[323375586,1713942640656,-500.0,0.00016438,2]
[323375587,1713942640665,-509.54472222,0.00016438,2]
[323375588,1713942640674,-500.0,0.00016438,2]
[323375589,1713942640684,-500.0,0.00016438,2]
[323375590,1713942640693,-500.0,0.00016438,2]
[323375591,1713942640703,-517.94,0.00016438,2]
[323375592,1713942640712,-500.0,0.00016438,2]
[323375593,1713942640723,-507.72204126,0.00016438,2]
[323375594,1713942640732,-1113.56,0.00016438,2]
[323375595,1713942640742,-500.0,0.00016438,2]
[323375596,1713942640751,-768.3,0.00016438,2]
[323375597,1713942640761,-610.42281034,0.00016438,2]
[323375598,1713942640771,-500.0,0.00016438,2]
[323375599,1713942640780,-500.0,0.00016438,2]
[323375600,1713942640791,-500.0,0.00016438,2]
[323375601,1713942640800,-500.0,0.00016438,2]